bitfinex/quotes_SOLUSD_20240607
["timestamp","ask_amount","ask_price","bid_price","bid_amount"]
[1717780517503,2.2063,167.7,167.64,2.5682195]
[1717780517841,2.2062,167.71,167.64,19.2012195]
[1717780518008,2.2061,167.72,167.64,19.2012195]
[1717780518332,2.2062,167.71,167.65,2.2069]
[1717780518906,2.2063,167.7,167.64,21.4082195]
[1717780519121,2.2062,167.71,167.65,2.2069]
[1717780519333,2.2063,167.7,167.65,2.2069]
[1717780519631,2.2063,167.7,167.65,6.1397]
[1717780519807,2.2063,167.7,167.65,8.3466]
[1717780520003,2.2062,167.71,167.65,8.3466]
[1717780520217,4.412,167.73,167.65,6.1397]
[1717780520406,175.78,167.77,167.64,0.3612195]
[1717780520620,8.8248,167.71,167.64,0.3612195]
[1717780520816,20.0,167.7,167.64,0.3612195]
[1717780521125,2.2066,167.68,167.64,0.3612195]
[1717780521356,24.4128,167.7,167.64,0.3612195]
[1717780521357,4.4128,167.7,167.64,0.3612195]
[1717780521826,2.2069,167.66,167.64,0.3612195]
[1717780522310,4.413,167.69,167.64,0.3612195]
[1717780522523,2.2069,167.65,167.64,0.3612195]
[1717780523453,44.9096,167.6,167.59,0.03711064]
[1717780523657,28.3971,167.6,167.59,0.03711064]
[1717780523954,2.2076,167.6,167.59,0.03711064]
[1717780524250,6.6228,167.6,167.59,0.03711064]
[1717780524454,28.3971,167.6,167.59,0.03711064]
[1717780524830,2.2081,167.56,167.55,0.33482014]
[1717780525250,4.4155,167.59,167.55,0.33482014]
[1717780525556,2.2081,167.56,167.55,0.33482014]
[1717780526146,28.4023,167.56,167.55,0.33482014]
[1717780527235,79.7575,167.56,167.55,0.33482014]
[1717780527441,86.71896445,167.56,167.55,2.014e-05]
[1717780527642,96.49379465,167.56,167.55,2.014e-05]
[1717780528449,71.14376445,167.56,167.55,2.014e-05]
[1717780528675,29.04286445,167.56,167.55,2.014e-05]
[1717780528827,22.0814,167.56,167.55,2.014e-05]
[1717780529441,28.137,167.56,167.55,2.014e-05]
[1717780529633,92.27408625,167.56,167.55,2.014e-05]
[1717780531397,101.50936482,167.56,167.55,2.014e-05]
[1717780531558,117.50936482,167.56,167.55,2.014e-05]
[1717780532186,108.27408625,167.56,167.55,2.014e-05]
[1717780534868,280.48358625,167.56,167.55,2.014e-05]
[1717780535079,280.48358625,167.56,167.5,13.768]
[1717780535080,184.274,167.51,167.5,13.768]
[1717780535281,209.24755391,167.51,167.5,7.878]
[1717780535688,155.78,167.47,167.38,0.7977095]
[1717780535881,2.2103,167.4,167.38,0.7977095]
[1717780536312,120.0,167.49,167.31,0.3612195]
[1717780536313,6.6321,167.37,167.31,0.158929]
[1717780536520,6.20584585,167.4,167.31,0.158929]
[1717780537113,2.2108,167.36,167.31,22.220429]
[1717780537406,4.4209,167.39,167.31,22.220429]
[1717780537585,2.2109,167.35,167.31,21.220429]
[1717780537789,4.4217,167.36,167.24,15.4535]
[1717780538005,4.4219,167.35,167.24,17.6658]
[1717780538298,8.8427,167.37,167.24,15.4535]
[1717780538299,2.2112,167.33,167.24,15.4535]
[1717780538482,2.2113,167.32,167.25,2.2122]
[1717780538689,2.2113,167.32,167.24,15.4535]
[1717780538690,155.78,167.37,167.24,14.9535]
[1717780538876,4.4225,167.33,167.21,0.7977095]
[1717780539077,4.4222,167.34,167.21,0.7977095]
[1717780539279,2.2117,167.3,167.22,2.2125]
[1717780539584,2.2115,167.31,167.23,2.2125]
[1717780540204,6.6317,167.38,167.21,0.7977095]
[1717780540405,2.2111,167.34,167.26,2.212]
[1717780540603,2.2111,167.34,167.22,26.4851]
[1717780540604,2.2113,167.33,167.25,2.2122]
[1717780540802,46.8337,167.37,167.24,8.3699]
[1717780541011,2.2113,167.32,167.24,8.3699]
[1717780541223,4.4215,167.37,167.24,6.1576]
[1717780541406,10.62664585,167.4,167.24,6.1576]
[1717780541701,6.20584585,167.4,167.27,16.0061]
[1717780541903,6.20584585,167.4,167.29,2.2117]
[1717780541904,2.2107,167.37,167.29,2.2117]
[1717780543109,2.2114,167.31,167.27,16.0061]
[1717780543299,15.4796,167.32,167.24,6.1576]
[1717780543507,184.13708625,167.37,167.15,4.4269]
[1717780543508,2.2117,167.29,167.21,3.0104095]
[1717780543684,4.4224,167.33,167.21,0.7977095]
[1717780544012,4.4217,167.36,167.21,27.2832095]
[1717780544223,2.2113,167.33,167.26,2.2121]
[1717780544507,2.2111,167.34,167.22,4.425]
[1717780544710,64.13708625,167.37,167.24,2.2123]
[1717780544711,2.2114,167.32,167.24,2.2123]
[1717780545119,2.2111,167.34,167.26,2.2121]
[1717780545294,2.2109,167.35,167.28,6.2199]
[1717780545491,64.13708625,167.39,167.29,16.1777]
[1717780545794,2.2108,167.36,167.29,16.1777]
[1717780546012,2.2105,167.38,167.29,16.1777]
[1717780546207,2.2106,167.37,167.29,16.1777]
[1717780546510,2.2108,167.36,167.28,2.2118]
[1717780546708,2.211,167.35,167.27,2.2118]
[1717780546913,2.2109,167.35,167.28,2.2117]
[1717780547116,2.211,167.34,167.26,22.06]
[1717780547405,2.2109,167.35,167.28,2.2118]
[1717780547610,2.2107,167.37,167.29,2.2117]
[1717780547795,2.2108,167.36,167.28,2.2118]
[1717780547983,4.4208,167.39,167.26,22.06]
[1717780548189,4.4211,167.38,167.26,24.272]
[1717780548401,1.35675575,167.37,167.26,2.212]
[1717780548703,2.2111,167.34,167.26,2.212]
[1717780548894,2.2114,167.32,167.23,16.1777]
[1717780549090,2.2112,167.33,167.26,2.212]
[1717780549307,2.211,167.34,167.26,2.212]
[1717780550220,2.2109,167.35,167.23,22.815]
[1717780550420,2.211,167.34,167.27,2.2119]
[1717780550614,2.2109,167.35,167.27,2.2119]
[1717780551009,2.2109,167.35,167.28,2.2118]
[1717780551220,2.2109,167.35,167.27,2.2119]
[1717780551400,2.211,167.34,167.27,2.2119]
[1717780551718,2.2109,167.36,167.29,2.2117]
[1717780552007,3.56745575,167.37,167.29,2.2117]
[1717780552224,2.2108,167.36,167.28,2.2118]
[1717780552522,2.2109,167.35,167.28,2.2118]
[1717780553224,2.2107,167.37,167.3,8.3245]
[1717780553423,2.2105,167.38,167.3,8.3245]
[1717780553728,2.2107,167.37,167.3,8.3245]
[1717780554119,4.4209,167.39,167.27,21.4769]
[1717780554306,2.211,167.35,167.27,21.4769]
[1717780554624,2.211,167.35,167.27,23.6888]
[1717780554999,2.211,167.35,167.28,2.2118]
[1717780555328,1.35675575,167.39,167.29,2.2116]
[1717780555535,2.2107,167.37,167.3,2.2115]
[1717780555705,1.35675575,167.39,167.27,21.4769]
[1717780556025,2.2105,167.38,167.28,4.4236]
[1717780556260,2.2105,167.38,167.31,2.2114]
[1717780556404,2.2107,167.37,167.3,2.2115]
[1717780556597,2.2105,167.38,167.3,2.2115]
[1717780556798,3.56715575,167.39,167.32,2.2112]
[1717780556998,1.35675575,167.39,167.33,2.2111]
[1717780557204,1.35675575,167.39,167.34,2.211]
[1717780557432,64.13708625,167.43,167.32,6.2529]
[1717780557605,4.4192,167.45,167.32,6.2529]
[1717780557927,4.4192,167.45,167.34,2.2109]
[1717780557928,2.2101,167.41,167.34,2.2109]
[1717780558138,4.4196,167.44,167.32,6.2529]
[1717780558308,2.21,167.42,167.35,2.2108]
[1717780558511,2.2102,167.41,167.34,2.211]
[1717780558703,2.2102,167.4,167.32,6.2529]
[1717780558923,2.2102,167.4,167.33,2.2111]
[1717780559102,2.2101,167.41,167.34,2.211]
[1717780559299,2.2099,167.43,167.32,12.8867]
[1717780559519,10.61289489,167.46,167.34,4.4221]
[1717780559731,2.2095,167.46,167.39,2.2103]
[1717780559930,2.2096,167.45,167.38,2.2104]
[1717780560157,2.2094,167.46,167.39,2.2103]
[1717780560361,2.2095,167.46,167.39,2.2103]
[1717780560566,2.2092,167.48,167.41,8.8409]
[1717780560746,70.32984051,167.5,167.41,6.6309]
[1717780560935,4.4181,167.49,167.4,23.1247]
[1717780561138,2.2091,167.49,167.4,23.1247]
[1717780561464,64.13708625,167.52,167.34,6.4997]
[1717780561766,2.2097,167.44,167.35,4.4218]
[1717780562141,2.2097,167.44,167.37,2.2106]
[1717780562336,2.2101,167.41,167.34,8.7107]
[1717780562638,8.8399,167.43,167.34,6.4997]
[1717780562839,15.4701,167.42,167.35,16.4764]
[1717780563162,20.0,167.5,167.34,6.0923]
[1717780563163,2.2102,167.41,167.34,2.211]
[1717780563457,184.13708625,167.52,167.33,4.4223]
[1717780563634,8.8362,167.5,167.32,6.0923]
[1717780563838,2.2094,167.47,167.41,2.2101]
[1717780564055,2.2094,167.46,167.38,16.1654]
[1717780564261,2.2093,167.47,167.4,2.2102]
[1717780564449,5.77435575,167.51,167.42,8.8166]
[1717780564655,1.35675575,167.51,167.42,6.6067]
[1717780564839,120.0,167.47,167.34,28.0968]
[1717780565038,2.2099,167.43,167.36,2.2107]
[1717780565260,120.0,167.43,167.3,22.06]
[1717780565439,4.4204,167.41,167.32,2.2112]
[1717780565635,2.2103,167.4,167.3,4.4231]
[1717780565859,8.8387,167.45,167.29,6.6197]
[1717780565860,2.21,167.42,167.33,4.4223]
[1717780566170,2.21,167.42,167.32,15.479]
[1717780566171,2.2101,167.42,167.35,2.2108]
[1717780566340,2.2101,167.42,167.36,2.2107]
[1717780566544,2.2099,167.43,167.37,2.2106]
[1717780566756,2.2094,167.46,167.38,6.0971]
[1717780567068,8.8364,167.49,167.38,6.0971]
[1717780567362,13.75339622,167.51,167.38,6.0971]
[1717780567363,2.2102,167.41,167.38,6.0971]
[1717780567667,35.78,167.47,167.34,6.617]
[1717780567668,2.2104,167.39,167.34,6.617]
[1717780567868,2.2105,167.38,167.33,15.8062]
[1717780568162,2.2105,167.38,167.34,6.617]
[1717780568469,2.2104,167.39,167.34,6.617]
[1717780568769,2.2104,167.39,167.33,15.8062]
[1717780568770,2.2104,167.39,167.33,8.828]
[1717780568938,11.0495,167.43,167.33,8.828]
[1717780568939,2.2103,167.4,167.33,8.828]
[1717780569144,2.2103,167.4,167.34,2.211]
[1717780569346,2.2102,167.4,167.34,2.211]
[1717780569565,2.2102,167.41,167.34,2.211]
[1717780569768,2.2102,167.4,167.34,2.211]
[1717780570381,2.2102,167.41,167.34,2.211]
[1717780570682,2.2103,167.4,167.34,2.211]
[1717780570860,2.2103,167.4,167.33,8.8281]
[1717780571040,4.42,167.42,167.33,8.8281]
[1717780571243,2.2105,167.38,167.33,6.617]
[1717780571444,2.2107,167.37,167.33,6.617]
[1717780571676,2.2105,167.38,167.31,2.2113]
[1717780571963,2.2105,167.38,167.31,2.2114]
[1717780572174,2.2104,167.39,167.33,2.2111]
[1717780572347,2.2103,167.4,167.33,2.2111]
[1717780572670,20.0,167.41,167.32,2.2113]
[1717780572962,2.2104,167.39,167.33,2.2111]
[1717780573279,2.2104,167.39,167.29,13.2699]
[1717780573571,1.35675575,167.38,167.33,2.211]
[1717780573877,1.35675575,167.38,167.33,8.3855]
[1717780574170,3.56725575,167.38,167.31,2.2113]
[1717780574339,3.56725575,167.38,167.32,2.2113]
[1717780574768,1.35675575,167.38,167.32,2.2113]
[1717780575166,1.35675575,167.38,167.33,2.2111]
[1717780575357,1.35675575,167.38,167.35,6.0266]
[1717780576256,1.35675575,167.38,167.35,8.2374]
[1717780576450,1.35675575,167.38,167.35,6.0266]
[1717780576685,1.35675575,167.38,167.33,2.2111]
[1717780576855,1.35675575,167.38,167.33,8.7036]
[1717780578275,1.35675575,167.38,167.33,6.4925]
[1717780578477,3.56725575,167.38,167.33,6.4925]
[1717780578871,1.35675575,167.38,167.33,6.4925]
[1717780579077,1.35675575,167.38,167.34,2.211]
[1717780579469,1.35675575,167.38,167.33,6.4925]
[1717780579985,3.56735575,167.38,167.33,6.4925]
[1717780580159,1.35675575,167.38,167.34,2.211]
[1717780581160,1.35675575,167.38,167.33,2.2111]
[1717780581368,1.35675575,167.38,167.33,8.2454]
[1717780581683,1.35675575,167.38,167.33,6.0343]
[1717780581684,3.56725575,167.38,167.33,6.0343]
[1717780581978,1.35675575,167.38,167.33,6.0343]
[1717780582166,1.35675575,167.38,167.33,8.2454]
[1717780582372,1.35675575,167.38,167.34,6.1486]
[1717780584264,1.35675575,167.38,167.34,8.3596]
[1717780584965,1.35675575,167.38,167.35,8.7155]
[1717780585567,1.35675575,167.38,167.37,2.2106]
[1717780585767,1.35675575,167.38,167.36,6.5047]
[1717780585975,0.85675575,167.38,167.36,8.7154]
[1717780586367,0.85675575,167.38,167.37,8.8434]
[1717780586580,0.85675575,167.38,167.37,25.0684]
[1717780586763,0.85675575,167.38,167.37,22.8578]
[1717780586966,0.85675575,167.38,167.37,25.0684]
[1717780587883,2.2099,167.43,167.37,25.0684]
[1717780588789,24.4193,167.45,167.37,16.225]
[1717780589097,2.2099,167.43,167.37,18.4356]
[1717780589468,2.2098,167.44,167.37,18.4356]
[1717780589670,20.0,167.45,167.37,18.4356]
[1717780589885,2.2096,167.45,167.37,16.225]
[1717780590112,2.2097,167.44,167.38,2.2104]
[1717780590474,2.2099,167.43,167.37,16.225]
[1717780590898,11.0475,167.46,167.37,16.225]
[1717780590899,6.6285,167.46,167.37,16.225]
[1717780591100,6.629,167.45,167.37,16.225]
[1717780591322,2.2101,167.41,167.35,8.2595]
[1717780591481,2.2102,167.41,167.35,6.0487]
[1717780591794,2.2101,167.42,167.35,6.0487]
[1717780592111,2.2102,167.41,167.35,6.0487]
[1717780592315,2.2101,167.41,167.35,8.2596]
[1717780593300,2.2107,167.37,167.33,18.94]
[1717780593496,2.2107,167.37,167.31,2.2113]
[1717780593982,4.4207,167.4,167.31,2.2113]
[1717780594182,2.2106,167.38,167.32,2.2113]
[1717780594582,2.2104,167.39,167.33,2.2111]
[1717780595805,24.4203,167.41,167.31,6.1406]
[1717780595977,2.2104,167.39,167.33,2.2111]
[1717780596180,2.2105,167.38,167.33,2.2111]
[1717780596377,2.2104,167.39,167.33,2.2111]
[1717780596997,2.2106,167.38,167.32,2.2112]
[1717780597184,2.2106,167.37,167.3,25.4497]
[1717780597389,2.2104,167.39,167.33,2.2111]
[1717780598015,28.841,167.41,167.33,2.2111]
[1717780598016,2.2105,167.38,167.33,2.2111]
[1717780598391,2.2104,167.39,167.33,2.2111]
[1717780598592,4.4205,167.4,167.32,2.2113]
[1717780598904,2.2106,167.38,167.32,2.2113]
[1717780600128,2.2105,167.38,167.32,2.2113]
[1717780600422,2.2105,167.39,167.33,2.2111]
[1717780600737,2.2105,167.38,167.33,2.2111]
[1717780600907,2.2105,167.38,167.33,6.4193]
[1717780601497,2.2105,167.38,167.33,8.6304]
[1717780601812,2.2104,167.39,167.33,17.7201]
[1717780602003,2.2104,167.39,167.34,2.211]
[1717780602196,2.2102,167.41,167.35,2.2109]
[1717780602396,8.41352284,167.43,167.35,4.4217]
[1717780602614,2.2098,167.44,167.38,2.2105]
[1717780602796,4.419,167.46,167.37,2.2105]
[1717780603007,2.2098,167.44,167.38,2.2105]
[1717780603494,4.419,167.46,167.37,2.2106]
[1717780603692,2.2098,167.44,167.38,2.2104]
[1717780603896,2.2096,167.45,167.39,2.2103]
[1717780604317,2.2095,167.46,167.39,2.2103]
[1717780604519,6.6278,167.48,167.34,19.8991]
[1717780604725,2.21,167.42,167.36,2.2107]
[1717780605122,2.2099,167.43,167.37,2.2106]
[1717780605708,4.4192,167.45,167.35,18.94]
[1717780605923,2.2099,167.43,167.37,2.2106]
[1717780606120,2.21,167.42,167.36,2.2107]
[1717780606326,4.4195,167.44,167.36,2.2107]
[1717780606627,2.2101,167.42,167.35,21.1508]
[1717780606833,2.2101,167.42,167.36,2.2107]
[1717780607020,2.2101,167.41,167.35,2.2109]
[1717780607214,2.2102,167.41,167.35,2.2108]
[1717780607416,2.21,167.42,167.36,2.2107]
[1717780607641,2.2098,167.44,167.38,2.2105]
[1717780607935,2.2098,167.43,167.37,2.2106]
[1717780608432,2.2098,167.44,167.38,2.2105]
[1717780608739,2.2099,167.43,167.37,2.2106]
[1717780609240,2.2098,167.44,167.38,2.2105]
[1717780609608,2.2099,167.43,167.37,2.2106]
[1717780610317,2.2098,167.44,167.38,2.2105]
[1717780610537,20.0,167.45,167.35,23.3618]
[1717780610830,2.2099,167.43,167.37,2.2106]
[1717780611139,31.0475,167.46,167.35,23.3618]
[1717780611140,22.2096,167.45,167.38,2.2105]
[1717780611312,2.2098,167.44,167.38,2.2104]
[1717780611712,2.2094,167.47,167.41,2.2101]
[1717780611939,2.2095,167.46,167.4,2.2102]
[1717780612120,2.2095,167.46,167.41,2.2101]
[1717780612325,2.2093,167.47,167.41,2.21]
[1717780612634,2.2092,167.48,167.42,2.2099]
[1717780614124,2.2091,167.49,167.43,2.2098]
[1717780614525,2.2092,167.48,167.42,2.2099]
[1717780616438,6.20640301,167.52,167.41,18.94]
[1717780616639,2.2088,167.51,167.45,2.2095]
[1717780617637,2.2088,167.51,167.46,2.2094]
[1717780617938,11.0423,167.54,167.46,2.2094]
[1717780617939,2.2087,167.52,167.46,2.2094]
[1717780618144,2.2088,167.51,167.45,2.2095]
[1717780618523,6.20807977,167.55,167.44,18.94]
[1717780618725,2.2085,167.53,167.48,2.2091]
[1717780618942,2.2083,167.55,167.49,2.209]
[1717780619146,2.2086,167.53,167.47,2.2092]
[1717780619630,2.2086,167.53,167.47,8.458]
[1717780619839,2.2085,167.53,167.47,8.458]
[1717780620019,2.2084,167.54,167.48,2.2091]
[1717780620438,2.2082,167.56,167.48,6.3548]
[1717780620742,6.21056433,167.58,167.48,6.3548]
[1717780620925,2.2086,167.53,167.48,2.2092]
[1717780621124,2.2084,167.54,167.48,2.2092]
[1717780621448,2.2085,167.53,167.49,6.6109]
[1717780621634,2.2084,167.54,167.49,6.6109]
[1717780622021,6.21056433,167.58,167.45,6.6572]
[1717780622221,2.209,167.5,167.45,6.5667]
[1717780622427,4.4172,167.53,167.45,8.7762]
[1717780622629,2.2088,167.51,167.45,8.7762]
[1717780622832,2.2093,167.48,167.42,18.014]
[1717780623039,8.8352,167.52,167.42,15.804]
[1717780623246,2.2091,167.49,167.43,2.2098]
[1717780623750,13.2527,167.52,167.44,2.2097]
[1717780623930,13.2507,167.54,167.46,2.2094]
[1717780624134,2.2088,167.52,167.46,2.2094]
[1717780624331,2.2087,167.52,167.46,8.262]
[1717780624530,4.4164,167.56,167.45,6.0526]
[1717780624734,2.2088,167.51,167.46,8.262]
[1717780625034,11.0417,167.55,167.46,8.262]
[1717780625035,2.2089,167.5,167.46,6.0526]
[1717780626060,2.2091,167.49,167.44,6.3574]
[1717780626237,2.2092,167.48,167.44,6.3574]
[1717780626436,2.2091,167.49,167.44,6.3574]
[1717780626848,20.0,167.56,167.44,6.3574]
[1717780627151,2.2087,167.52,167.47,6.466]
[1717780627352,24.4169,167.54,167.48,15.1582]
[1717780627853,2.2087,167.52,167.46,8.6754]
[1717780628041,20.0,167.54,167.46,6.466]
[1717780628246,6.21056433,167.58,167.46,6.466]
[1717780628247,10.62636433,167.58,167.47,4.4185]
[1717780628446,6.21056433,167.58,167.48,4.4184]
[1717780628641,2.2083,167.55,167.49,2.209]
[1717780629039,2.2081,167.56,167.5,2.2089]
[1717780629351,2.2081,167.57,167.51,2.2087]
[1717780629552,2.2079,167.58,167.52,2.2085]
[1717780629865,2.2076,167.6,167.54,2.2084]
[1717780630044,64.13708625,167.64,167.49,18.94]
[1717780630354,2.2075,167.61,167.55,2.2081]
[1717780630656,2.2075,167.61,167.52,4.4172]
[1717780630657,2.2077,167.59,167.53,2.2085]
[1717780631134,4.4146,167.63,167.5,27.0968]
[1717780631135,4.4148,167.62,167.5,27.0968]
[1717780631334,2.2079,167.58,167.52,2.2086]
[1717780631535,4.4148,167.62,167.5,22.679]
[1717780631536,4.4151,167.61,167.51,2.2087]
[1717780631763,2.208,167.57,167.51,2.2087]
[1717780632158,138.94,167.63,167.5,22.679]
[1717780632460,2.2087,167.52,167.46,17.2646]
[1717780632846,4.4163,167.56,167.46,15.0552]
[1717780633159,2.2085,167.53,167.47,2.2093]
[1717780633347,20.0,167.56,167.47,2.2092]
[1717780633552,4.4162,167.57,167.46,15.0552]
[1717780633749,2.2083,167.55,167.49,2.209]
[1717780634052,4.4162,167.57,167.48,2.2091]
[1717780634258,2.2085,167.54,167.48,2.2091]
[1717780634834,2.2086,167.53,167.47,2.2093]
[1717780635054,2.2084,167.54,167.48,2.2091]
[1717780635837,2.2083,167.55,167.49,2.209]
[1717780636039,2.2083,167.55,167.47,6.2786]
[1717780636040,2.2083,167.55,167.5,2.2089]
[1717780636436,2.2082,167.56,167.5,2.2089]
[1717780636636,6.4716,167.6,167.48,6.2443]
[1717780636838,2.2079,167.58,167.52,2.2086]
[1717780637040,2.2077,167.6,167.54,2.2084]
[1717780637345,4.4146,167.63,167.55,2.2082]
[1717780637559,4.4147,167.62,167.54,2.2083]
[1717780637866,2.2077,167.6,167.54,2.2083]
[1717780638053,2.2077,167.6,167.52,6.4015]
[1717780638248,2.2078,167.59,167.54,8.6098]
[1717780638761,2.2076,167.6,167.55,6.4015]
[1717780639146,2.2076,167.6,167.55,8.6097]
[1717780639347,2.2077,167.59,167.55,6.4015]
[1717780639659,12.2667601,167.64,167.55,6.4015]
[1717780639861,4.4162,167.57,167.5,21.435]
[1717780640041,20.0,167.61,167.51,8.5281]
[1717780640042,2.2082,167.56,167.51,8.5281]
[1717780640248,28.8305,167.61,167.53,6.3194]
[1717780640249,2.208,167.57,167.53,6.3194]
[1717780640438,6.6234,167.59,167.5,2.2089]
[1717780640639,2.2081,167.56,167.5,2.2088]
[1717780640868,2.208,167.57,167.52,2.2086]
[1717780641070,2.208,167.57,167.52,24.8752]
[1717780641246,20.0,167.59,167.53,6.5569]
[1717780641453,2.2081,167.57,167.53,6.5569]
[1717780641656,2.2081,167.56,167.53,6.5569]
[1717780642248,2.2083,167.55,167.5,2.2089]
[1717780642445,6.6242,167.57,167.5,6.5698]
[1717780642761,2.2086,167.53,167.5,6.5698]
[1717780642956,2.2084,167.54,167.5,6.5698]
[1717780643144,2.2083,167.55,167.5,24.2534]
[1717780643461,2.2083,167.55,167.5,22.0446]
[1717780643669,2.2084,167.54,167.51,6.0915]
[1717780643842,2.2082,167.56,167.51,8.3003]
[1717780644049,2.2082,167.56,167.52,6.0915]
[1717780644864,2.2083,167.55,167.52,6.0915]
[1717780645064,2.2082,167.56,167.52,6.0915]
[1717780645244,2.2082,167.56,167.51,2.2087]
[1717780645444,2.2082,167.56,167.53,6.1666]
[1717780645643,2.208,167.57,167.53,6.1666]
[1717780645866,2.2081,167.56,167.53,6.1666]
[1717780646280,2.2083,167.55,167.5,2.2088]
[1717780646574,20.0,167.59,167.51,6.301]
[1717780646768,2.2085,167.53,167.49,6.301]
[1717780647080,2.2087,167.52,167.49,6.301]
[1717780647369,2.2087,167.52,167.48,15.3683]
[1717780647546,4.4171,167.53,167.44,15.3683]
[1717780647745,4.4174,167.52,167.44,15.3683]
[1717780647946,8.8348,167.52,167.45,2.2095]
[1717780648153,28.8348,167.52,167.45,2.2095]
[1717780648357,2.209,167.49,167.44,2.2096]
[1717780648553,2.2092,167.48,167.44,8.7387]
[1717780648972,2.2091,167.49,167.45,2.2095]
[1717780649292,11.0435,167.52,167.45,2.2095]
[1717780649447,2.2091,167.49,167.44,8.7387]
[1717780649954,19.8783,167.52,167.44,8.7387]
[1717780649955,2.2092,167.48,167.44,8.7387]
[1717780650152,2.2094,167.46,167.44,6.5291]
[1717780650482,175.89,167.55,167.42,2.2099]
[1717780650654,8.8364,167.49,167.41,2.2101]
[1717780650852,2.2094,167.47,167.41,6.1754]
[1717780651172,2.2094,167.47,167.4,20.5866]
[1717780651173,2.2093,167.47,167.42,2.2099]
[1717780651373,11.0461,167.48,167.4,24.6256]
[1717780651575,4.4191,167.46,167.4,6.2493]
[1717780651752,2.2099,167.43,167.4,6.2493]
[1717780652456,2.2102,167.41,167.37,16.2233]
[1717780652652,2.2101,167.41,167.36,2.2106]
[1717780652867,2.2101,167.41,167.37,8.6345]
[1717780653071,2.21,167.42,167.37,8.6345]
[1717780653371,2.21,167.42,167.39,6.0958]
[1717780653563,2.2099,167.43,167.39,6.0958]
[1717780653766,2.21,167.42,167.39,6.0958]
[1717780654574,4.4192,167.45,167.39,6.0958]
[1717780654775,2.2101,167.42,167.37,8.3315]
[1717780655179,2.2101,167.41,167.37,6.1209]
[1717780656691,2.21,167.42,167.38,6.0394]
[1717780657187,2.2099,167.43,167.38,18.67]
[1717780657356,2.2099,167.43,167.39,6.0394]
[1717780658070,2.21,167.42,167.38,16.4595]
[1717780658273,2.21,167.42,167.37,2.2106]
[1717780658580,2.2101,167.41,167.37,6.0394]
[1717780659773,20.0,167.44,167.34,16.4595]
[1717780660080,20.0,167.44,167.33,6.0394]
[1717780660081,2.2106,167.38,167.33,8.2622]
[1717780660790,8.8422,167.38,167.29,6.0511]
[1717780660969,2.2111,167.34,167.29,8.2627]
[1717780661166,4.4214,167.37,167.29,8.2627]
[1717780661167,2.2109,167.35,167.3,8.2626]
[1717780661369,2.2109,167.35,167.3,2.2115]
[1717780661690,4.4216,167.36,167.29,2.2116]
[1717780661867,2.2111,167.34,167.29,2.2116]
[1717780662378,6.19037932,167.38,167.3,6.0511]
[1717780662573,20.0,167.4,167.31,11.0571]
[1717780662756,2.2104,167.39,167.31,4.4229]
[1717780662957,2.2104,167.39,167.34,2.211]
[1717780663581,2.2105,167.38,167.34,6.0511]
[1717780663762,2.2105,167.38,167.35,6.0511]
[1717780664466,4.4197,167.43,167.36,6.0511]
[1717780664669,2.2104,167.39,167.36,6.0511]
[1717780664859,4.4197,167.43,167.36,6.0511]
[1717780665063,2.2103,167.4,167.36,6.0511]
[1717780665575,2.2104,167.39,167.36,6.0511]
[1717780666105,11.0494,167.43,167.36,6.0511]
[1717780666400,2.2104,167.39,167.36,6.0511]
[1717780666702,2.2104,167.39,167.36,22.7168]